bitfinex/quotes_SOLUSD_20250815
["timestamp","ask_amount","ask_price","bid_price","bid_amount"]
[1755281063723,0.06,185.87,185.86,13.51124869]
[1755281064247,0.75,185.87,185.86,13.51124869]
[1755281064835,0.06,185.87,185.86,13.51124869]
[1755281067323,0.06,185.87,185.85,5.38049664]
[1755281067643,0.75,185.87,185.86,13.51124869]
[1755281067854,0.06,185.87,185.86,13.51124869]
[1755281069545,0.06,185.87,185.86,18.89164253]
[1755281071817,0.06,185.87,185.86,33.9978581]
[1755281072021,0.06,185.87,185.86,73.2778581]
[1755281072719,0.06,185.91,185.89,15.10621557]
[1755281072918,0.06,185.93,185.91,15.10621557]
[1755281073124,0.06,185.93,185.92,28.61746426]
[1755281073420,0.06,185.93,185.92,33.99612174]
[1755281073725,0.06,185.93,185.92,13.51124869]
[1755281073931,0.75,185.93,185.92,39.24]
[1755281074126,0.75,185.93,185.92,52.75124869]
[1755281074719,0.75,185.93,185.92,48.44878572]
[1755281074720,0.06,185.93,185.92,48.44878572]
[1755281075646,0.06,185.93,185.92,39.24]
[1755281075831,0.06,185.93,185.92,48.44878572]
[1755281076241,0.06,185.93,185.92,53.8274432]
[1755281076753,0.06,185.97,185.94,26.0]
[1755281076924,0.06,185.97,185.94,35.74659361]
[1755281077124,0.2,186.0,185.96,9.20878572]
[1755281077332,0.2,186.0,185.99,9.20878572]
[1755281077642,0.2,186.0,185.99,48.46878572]
[1755281078036,0.2,186.0,185.99,53.84541887]
[1755281078557,0.89,186.0,185.94,105.2]
[1755281078730,0.89,186.0,185.98,9.20878572]
[1755281078935,0.89,186.0,185.98,48.46878572]
[1755281079136,0.2,186.0,185.99,9.20878572]
[1755281079472,5.57642276,186.0,185.99,9.20878572]
[1755281079762,6.26642276,186.0,185.99,9.20878572]
[1755281080126,0.89,186.0,185.99,9.20878572]
[1755281080323,0.2,186.0,185.99,9.20878572]
[1755281082936,0.89,186.0,185.99,9.20878572]
[1755281083645,0.2,186.0,185.99,9.20878572]
[1755281084356,0.89,186.0,185.99,9.20878572]
[1755281084746,0.89,186.0,185.99,39.22]
[1755281084942,0.2,186.0,185.99,48.42878572]
[1755281086262,0.2,186.0,185.99,53.80541887]
[1755281086442,0.86,186.0,185.99,9.20878572]
[1755281086642,0.86,186.0,185.99,48.38878572]
[1755281087543,4.36,186.0,185.99,48.38878572]
[1755281088049,3.7,186.0,185.99,48.38878572]
[1755281088246,0.2,186.0,185.99,53.76541887]
[1755281090565,0.2,186.0,185.99,48.38878572]
[1755281090763,0.86,186.0,185.99,48.38878572]
[1755281091672,0.86,186.0,185.99,39.18]
[1755281091869,0.86,186.0,185.99,48.38878572]
[1755281093474,2.86,186.0,185.95,0.03]
[1755281093677,0.66,185.99,185.98,9.20878572]
[1755281093878,0.66,185.99,185.98,48.32878572]
[1755281094674,0.66,185.99,185.95,0.03]
[1755281094675,6.03663315,185.99,185.97,39.1]
[1755281094861,5.37663315,185.99,185.97,39.1]
[1755281095176,0.66,185.98,185.97,39.1]
[1755281095954,0.66,185.98,185.95,9.23878572]
[1755281096154,0.66,185.98,185.95,39.11]
[1755281096364,9.86878572,185.98,185.95,0.03]
[1755281096563,9.86878572,185.98,185.93,0.03]
[1755281096564,5.37778972,185.95,185.93,0.03]
[1755281096975,0.66,185.94,185.93,0.03]
[1755281097173,31.37757354,185.96,185.93,0.03]
[1755281097379,0.66,185.98,185.95,9.20878572]
[1755281097678,0.66,185.98,185.97,9.20878572]
[1755281098376,0.66,185.98,185.94,39.16]
[1755281098681,0.66,185.97,185.95,9.20878572]
[1755281098852,0.66,185.96,185.95,9.20878572]
[1755281099049,5.37663315,185.99,185.95,9.20878572]
[1755281099253,0.66,185.99,185.97,9.20878572]
[1755281099470,0.66,185.99,185.98,9.20878572]
[1755281100154,0.66,185.99,185.94,39.16]
[1755281100351,0.66,185.99,185.98,9.20878572]
[1755281101459,2.2,186.0,185.98,14.58555652]
[1755281101670,0.2,186.0,185.99,9.92878572]
[1755281102563,0.2,186.0,185.99,15.30541887]
[1755281105184,0.86,186.0,185.95,26.0]
[1755281105388,0.86,186.0,185.94,5.37807895]
[1755281105389,0.2,186.0,185.99,9.20878572]
[1755281105687,0.2,186.0,185.98,9.20878572]
[1755281105885,0.66,185.99,185.98,9.20878572]
[1755281106190,0.66,185.99,185.96,39.12]
[1755281106696,0.66,185.99,185.95,9.20878572]
[1755281106997,6.03692224,185.98,185.96,9.20878572]
[1755281107397,0.2,186.0,185.97,9.20878572]
[1755281107603,0.2,186.0,185.99,9.20878572]
[1755281107777,0.2,186.0,185.99,48.32878572]
[1755281108802,2.96,186.0,185.99,48.32878572]
[1755281108996,2.96,186.0,185.97,118.34]
[1755281109181,0.66,185.99,185.98,9.20878572]
[1755281109373,0.66,185.99,185.97,39.14]
[1755281109574,0.66,185.98,185.97,48.34878572]
[1755281109801,0.66,185.98,185.97,9.20878572]
[1755281110091,0.66,185.98,185.96,9.20878572]
[1755281110324,7.67638012,186.0,185.95,48.37878572]
[1755281110493,0.66,185.97,185.95,48.37878572]
[1755281110696,8.33638012,186.0,185.96,9.20878572]
[1755281110896,0.66,185.99,185.97,9.20878572]
[1755281111204,0.66,185.98,185.96,9.20878572]
[1755281111378,8.33638012,186.0,185.97,9.20878572]
[1755281111701,0.2,186.0,185.99,9.20878572]
[1755281112900,0.86,186.0,185.95,0.03]
[1755281113100,0.66,185.99,185.96,9.20878572]
[1755281113313,0.66,185.99,185.95,48.37878572]
[1755281113471,0.66,185.98,185.95,48.37878572]
[1755281113671,0.66,185.97,185.95,48.37878572]
[1755281114070,0.66,185.97,185.95,39.17]
[1755281114310,0.66,185.97,185.95,48.37878572]
[1755281114607,15.44517592,186.0,185.95,48.37878572]
[1755281114787,0.66,185.99,185.95,48.37878572]
[1755281115103,5.37692224,185.98,185.95,48.37878572]
[1755281115475,0.66,185.97,185.95,48.37878572]
[1755281115674,0.66,185.96,185.95,0.03]
[1755281115897,9.86878572,185.96,185.95,0.03]
[1755281116198,9.86878572,185.96,185.91,0.03]
[1755281116199,41.10621557,185.94,185.91,0.03]
[1755281116404,9.20878572,185.92,185.91,0.03]
[1755281116815,9.86878572,185.92,185.91,0.03]
[1755281117190,0.66,185.92,185.91,0.03]
[1755281117820,26.0,185.93,185.91,0.03]
[1755281118003,5.37807895,185.94,185.91,0.03]
[1755281118323,0.66,185.93,185.91,0.03]
[1755281118824,2.76,185.92,185.91,0.03]
[1755281119011,17.3474432,185.92,185.91,0.03]
[1755281119516,8.13865748,185.92,185.91,0.03]
[1755281120723,17.3474432,185.92,185.91,0.03]
[1755281120933,8.13865748,185.92,185.91,0.03]
[1755281121101,17.3474432,185.92,185.91,0.03]
[1755281121502,8.13865748,185.92,185.91,0.03]
[1755281121704,43.3474432,185.92,185.91,0.03]
[1755281121911,34.13865748,185.92,185.91,0.03]
[1755281122225,43.3474432,185.92,185.91,0.03]
[1755281122404,34.13865748,185.92,185.91,0.03]
[1755281123027,43.3474432,185.92,185.91,0.03]
[1755281123330,58.45365877,185.92,185.91,0.03]
[1755281123903,34.13865748,185.92,185.91,0.03]
[1755281124207,2.1,185.92,185.91,0.03]
[1755281124407,2.76,185.92,185.91,0.03]
[1755281124629,2.1,185.92,185.91,0.03]
[1755281125012,2.1,185.92,185.91,9.23878572]
[1755281125226,2.1,185.92,185.91,0.03]
[1755281125403,2.1,185.92,185.91,9.23878572]
[1755281125934,2.1,185.92,185.91,0.03]
[1755281126119,2.1,185.92,185.91,9.23878572]
[1755281126306,2.1,185.92,185.91,0.03]
[1755281126507,1.6,185.92,185.91,9.23878572]
[1755281127229,15.2474432,185.92,185.91,0.03]
[1755281127529,95.51365877,185.92,185.91,0.03]
[1755281128812,41.10621557,185.9,185.89,0.03]
[1755281129019,50.31500129,185.9,185.89,0.03]
[1755281129227,56.35423743,185.9,185.89,0.03]
[1755281129628,24.31500129,185.88,185.87,0.03]
[1755281129934,63.47500129,185.88,185.87,0.03]
[1755281130238,41.10621557,185.84,185.83,0.03]
[1755281130531,80.26621557,185.84,185.83,0.03]
[1755281130827,90.13500129,185.84,185.83,0.03]
[1755281131334,95.51597416,185.84,185.83,0.03]
[1755281132509,45.49340506,185.84,185.79,9.23878572]
[1755281132715,71.18097287,185.84,185.79,0.03]
[1755281132911,6.03952552,185.89,185.83,9.20878572]
[1755281133110,5.37952552,185.89,185.87,9.20878572]
[1755281133310,5.37952552,185.89,185.86,9.20878572]
[1755281133613,0.66,185.88,185.86,9.20878572]
[1755281133818,5.37952552,185.89,185.83,6.09123698]
[1755281136317,26.0,185.83,185.79,9.23878572]
[1755281136642,5.37952552,185.89,185.82,9.20878572]
[1755281136839,44.55931386,185.9,185.88,9.20878572]
[1755281137211,44.55931386,185.9,185.83,0.71]
[1755281137412,15.10621557,185.88,185.79,0.03]
[1755281137625,24.31500129,185.86,185.79,0.03]
[1755281137821,0.66,185.85,185.8,9.20878572]
[1755281138024,5.38097287,185.84,185.79,0.03]
[1755281138235,6.04097287,185.84,185.8,9.20878572]
[1755281138544,6.04097287,185.84,185.79,0.03]
[1755281138545,26.66,185.83,185.79,0.03]
[1755281138743,9.20878572,185.81,185.79,0.03]
[1755281138950,26.0,185.8,185.79,0.03]
[1755281139119,50.97500129,185.8,185.79,0.03]
[1755281139320,50.97500129,185.8,185.78,0.1]
[1755281139623,24.97500129,185.79,185.78,0.1]
[1755281140143,30.3574223,185.79,185.78,0.1]
[1755281140822,30.3574223,185.79,185.78,1e-08]
[1755281141949,60.40863658,185.79,185.78,1e-08]
[1755281142247,31.38242101,185.79,185.78,1e-08]
[1755281142543,65.26,185.79,185.78,1e-08]
[1755281142755,26.0,185.79,185.78,1e-08]
[1755281142952,14.85200791,185.85,185.78,9.91878573]
[1755281143145,39.26,185.83,185.8,9.20878572]
[1755281143947,5.38155203,185.82,185.8,9.20878572]
[1755281144457,5.38155203,185.82,185.79,9.20878572]
[1755281144620,15.10621557,185.79,185.78,1e-08]
[1755281144821,63.55500129,185.79,185.78,1e-08]
[1755281145020,90.21500129,185.79,185.78,1e-08]
[1755281145722,64.21500129,185.79,185.78,1e-08]
[1755281145947,69.5974223,185.79,185.77,1e-08]
[1755281146139,41.10621557,185.76,185.75,0.03]
[1755281146451,63.57500129,185.76,185.75,0.03]
[1755281146637,64.25500129,185.76,185.75,0.03]
[1755281146957,26.0,185.73,185.69,0.03]
[1755281147128,74.44878572,185.73,185.69,0.03]
[1755281147655,75.12878572,185.73,185.69,0.03]
[1755281148022,95.61916109,185.73,185.69,0.03]
[1755281148223,95.61916109,185.73,185.72,1e-08]
[1755281148428,15.10621557,185.72,185.7,1e-08]
[1755281148654,26.0,185.68,185.64,9.20878572]
[1755281148949,41.10621557,185.71,185.67,9.20878572]
[1755281149143,39.3,185.7,185.67,9.20878572]
[1755281149656,26.0,185.71,185.69,9.20878572]
[1755281149842,26.0,185.71,185.7,9.20878572]
[1755281150031,26.0,185.71,185.7,9.90878572]
[1755281150656,26.0,185.71,185.7,0.7]
[1755281150840,26.0,185.71,185.7,9.90878572]
[1755281151551,44.68361395,185.75,185.7,9.90878572]
[1755281151749,26.0,185.73,185.72,9.20878572]
[1755281152462,5.38396303,185.74,185.71,9.20878572]
[1755281152629,26.0,185.72,185.68,0.03]
[1755281152830,26.0,185.72,185.68,9.23878572]
[1755281153237,26.0,185.72,185.69,9.20878572]
[1755281153547,26.68,185.72,185.68,9.23878572]
[1755281153757,26.0,185.72,185.68,9.23878572]
[1755281153937,26.0,185.72,185.69,9.20878572]
[1755281154135,5.38473964,185.71,185.68,0.03]
[1755281154344,6.06473964,185.71,185.68,9.23878572]
[1755281154642,5.38473964,185.71,185.68,9.23878572]
[1755281155959,6.06473964,185.71,185.68,0.03]
[1755281156129,6.06473964,185.71,185.68,9.23878572]
[1755281156330,0.68,185.7,185.68,0.03]
[1755281156745,26.68,185.69,185.68,0.03]
[1755281156949,65.92,185.69,185.68,0.03]
[1755281157266,65.24,185.69,185.68,0.03]
[1755281158332,70.62531961,185.69,185.68,0.03]
[1755281158855,71.30531961,185.69,185.68,0.03]
[1755281159950,70.57531961,185.69,185.68,0.03]
[1755281160558,65.19,185.69,185.68,0.03]
[1755281160741,0.06,185.73,185.68,0.03]
[1755281160742,5.38484637,185.71,185.68,9.93878572]
[1755281160943,5.38484637,185.71,185.69,9.20878572]
[1755281162062,5.38484637,185.71,185.65,0.26]
[1755281162273,5.38484637,185.71,185.69,9.20878572]
[1755281162565,1.3,185.7,185.65,0.26]
[1755281162870,27.3,185.7,185.69,9.20878572]
[1755281163058,1.3,185.7,185.69,9.20878572]
[1755281163854,0.06,185.73,185.69,18.41757144]
[1755281164164,0.06,185.73,185.72,9.20878572]
[1755281164570,0.06,185.73,185.72,9.61878572]
[1755281164946,0.06,185.73,185.72,9.20878572]
[1755281171270,0.06,185.73,185.68,5.79538405]
[1755281171470,0.06,185.73,185.72,9.20878572]
[1755281172264,0.74,185.73,185.71,9.20878572]
[1755281172477,0.06,185.73,185.71,9.20878572]
[1755281172652,0.68,185.72,185.71,9.20878572]
[1755281172972,0.68,185.72,185.64,0.44]
[1755281173174,9.88878572,185.72,185.67,9.20878572]
[1755281173345,0.68,185.71,185.67,9.20878572]
[1755281173546,0.68,185.7,185.67,9.20878572]
[1755281173761,5.38531961,185.69,185.67,9.20878572]
[1755281174275,5.38531961,185.69,185.64,0.44]
[1755281174576,6.06531961,185.69,185.67,9.20878572]
[1755281174740,6.06531961,185.69,185.66,9.20878572]
[1755281174948,0.68,185.68,185.66,9.20878572]
[1755281175449,6.04531961,185.69,185.67,9.20878572]
[1755281175658,6.04531961,185.69,185.66,9.20878572]
[1755281175858,0.66,185.68,185.66,9.20878572]
[1755281176259,0.66,185.68,185.67,9.20878572]
[1755281176454,0.66,185.68,185.65,9.20878572]
[1755281176960,0.66,185.68,185.65,9.23878572]
[1755281177369,0.66,185.68,185.65,0.03]
[1755281177550,0.66,185.67,185.65,0.03]
[1755281177749,5.3861898,185.66,185.65,0.03]
[1755281177949,39.1,185.69,185.65,9.20878572]
[1755281178175,6.04566286,185.68,185.65,9.20878572]
[1755281178351,5.38566286,185.68,185.65,9.20878572]
[1755281178552,5.38566286,185.68,185.66,9.20878572]
[1755281178879,5.38566286,185.68,185.67,9.20878572]
[1755281179178,6.04566286,185.68,185.64,9.20878572]
[1755281179363,0.66,185.67,185.64,9.20878572]
[1755281179572,0.66,185.67,185.65,9.20878572]
[1755281179767,5.3861898,185.66,185.61,0.03]
[1755281180078,0.66,185.65,185.61,0.03]
[1755281180479,0.66,185.64,185.61,9.23878572]
[1755281180682,0.66,185.63,185.61,0.03]
[1755281181055,24.31500129,185.62,185.61,0.03]
[1755281181248,50.31500129,185.62,185.61,0.03]
[1755281181577,50.97500129,185.62,185.61,0.03]
[1755281181999,56.36235179,185.62,185.61,0.03]
[1755281183200,47.15356607,185.62,185.61,0.03]
[1755281183371,56.36235179,185.62,185.61,0.03]
[1755281183698,95.54235179,185.62,185.61,0.03]
[1755281184195,109.01072804,185.62,185.57,0.03]
[1755281184370,9.20878572,185.59,185.57,0.03]
[1755281184566,54.26621557,185.58,185.57,0.03]
[1755281184787,64.13500129,185.58,185.57,0.03]
[1755281185386,15.10621557,185.56,185.55,0.03]
[1755281185707,15.10621557,185.55,185.44,39.57]
[1755281186008,9.20878572,185.52,185.46,9.20878572]
[1755281186192,53.7793307,185.51,185.45,9.20878572]
[1755281186377,67.91569316,185.51,185.45,9.20878572]
[1755281186579,0.66,185.5,185.45,9.20878572]
[1755281186798,0.66,185.5,185.46,9.20878572]
[1755281187471,39.18,185.51,185.48,9.20878572]
[1755281188172,0.66,185.5,185.42,0.51]
[1755281188373,0.66,185.5,185.47,9.20878572]
[1755281188572,39.18,185.51,185.47,9.20878572]
[1755281188804,39.18,185.51,185.48,9.20878572]
[1755281188972,39.18,185.51,185.48,0.41]
[1755281189174,5.39000843,185.53,185.5,9.20878572]
[1755281189384,0.66,185.52,185.48,9.20878572]
[1755281189595,0.66,185.51,185.48,9.20878572]
[1755281190203,6.05083557,185.5,185.42,0.1]
[1755281190514,15.10621557,185.49,185.42,0.1]
[1755281190804,5.39083557,185.5,185.47,9.20878572]
[1755281191007,39.2,185.49,185.47,9.20878572]
[1755281191208,0.66,185.48,185.42,0.1]
[1755281191508,0.66,185.51,185.47,9.20878572]
[1755281191713,26.0,185.54,185.5,9.20878572]
[1755281191905,39.22,185.55,185.53,9.20878572]
[1755281192216,0.66,185.54,185.47,0.41]
[1755281192512,0.66,185.54,185.45,31.8022252]
[1755281193003,50.31500129,185.53,185.48,9.20878572]
[1755281193201,9.20878572,185.5,185.45,9.20878572]
[1755281193393,39.24,185.49,185.45,9.20878572]
[1755281193603,39.9,185.49,185.46,9.20878572]
[1755281193782,39.24,185.49,185.46,9.20878572]
[1755281194183,44.63140931,185.49,185.46,9.20878572]
[1755281194405,45.29140931,185.49,185.46,9.20878572]
[1755281194609,39.24,185.49,185.47,9.20878572]
[1755281194811,5.39051325,185.52,185.45,0.03]
[1755281195017,0.06,185.57,185.51,9.20878572]
[1755281195197,0.06,185.55,185.54,9.20878572]
[1755281195599,0.06,185.55,185.51,0.41]
[1755281195800,0.72,185.55,185.53,9.20878572]
[1755281196007,0.72,185.55,185.48,0.41]
[1755281196205,0.72,185.55,185.53,9.20878572]
[1755281196514,5.38967338,185.54,185.48,5.80141456]
[1755281196687,9.86878572,185.54,185.45,0.44]
[1755281196891,0.66,185.53,185.48,9.20878572]
[1755281197197,0.66,185.52,185.48,9.20878572]
[1755281197613,0.66,185.51,185.45,0.44]
[1755281197812,0.66,185.51,185.48,9.20878572]
[1755281198121,5.39083557,185.5,185.48,9.20878572]
[1755281198409,6.05083557,185.5,185.48,9.20878572]
[1755281198614,5.39083557,185.5,185.49,9.20878572]
[1755281198792,5.39083557,185.5,185.47,9.20878572]
[1755281199000,5.39083557,185.5,185.45,0.03]
[1755281199001,49.18878572,185.49,185.45,0.03]
[1755281199408,48.52878572,185.49,185.45,0.03]
[1755281199700,0.66,185.48,185.45,0.03]
[1755281200003,0.66,185.48,185.45,9.23878572]
[1755281200191,0.66,185.47,185.45,0.03]
[1755281200613,0.66,185.46,185.45,0.03]
[1755281201203,6.05141686,185.48,185.45,0.03]
[1755281201405,6.05141686,185.48,185.45,9.23878572]
[1755281201709,6.05141686,185.48,185.45,0.03]
[1755281201912,50.31500129,185.46,185.45,0.03]
[1755281202108,46.49821384,185.46,185.45,0.03]
[1755281202306,46.49821384,185.46,185.36,5.46485567]
[1755281202617,99.99820952,185.46,185.42,9.20878572]
[1755281202917,99.99820952,185.46,185.34,26.0]
[1755281202918,15.10621557,185.44,185.34,26.0]
[1755281203097,40.02,185.43,185.31,15.10621557]
[1755281203299,15.10621557,185.42,185.3,5.39665407]
[1755281203497,15.76621557,185.42,185.3,5.39665407]
[1755281203733,15.76621557,185.42,185.39,9.20878572]
[1755281204023,24.31500129,185.4,185.28,5.39723661]
[1755281204210,5.39432516,185.38,185.3,5.39647945]
[1755281204604,5.39432516,185.38,185.26,5.46781928]
[1755281204605,15.76621557,185.37,185.26,5.46781928]
[1755281204803,9.20878572,185.34,185.24,5.39815225]
[1755281205016,40.04,185.33,185.29,9.20878572]
[1755281205219,0.7,185.32,185.24,5.39815225]
[1755281205503,24.31500129,185.31,185.21,0.07]
[1755281205825,0.7,185.3,185.21,0.07]
[1755281206023,39.4,185.29,185.26,9.20878572]
[1755281206217,5.39613918,185.32,185.25,5.39798345]
[1755281206525,39.42,185.31,185.25,5.39798345]
[1755281206702,5.39520352,185.35,185.3,9.20878572]
[1755281206908,65.44,185.34,185.26,0.07]
[1755281207108,0.7,185.37,185.33,9.20878572]
[1755281207307,0.7,185.37,185.26,26.07]
[1755281207308,40.14,185.36,185.28,26.0]
[1755281207614,0.7,185.35,185.32,9.20878572]
[1755281207816,0.7,185.35,185.34,9.20878572]
[1755281208031,15.10621557,185.35,185.28,26.0]
[1755281208239,26.0,185.32,185.29,9.20878572]
[1755281208405,0.7,185.31,185.29,9.20878572]
[1755281208603,0.7,185.3,185.29,9.20878572]
[1755281208833,0.7,185.36,185.29,9.20878572]
[1755281209133,39.5,185.35,185.28,0.07]
[1755281210005,12.61935666,185.37,185.28,0.07]
[1755281210311,46.72470256,185.37,185.29,5.39694532]
[1755281210516,46.72470256,185.37,185.36,9.20878572]
[1755281210830,47.42470256,185.37,185.36,9.20878572]
[1755281211014,7.22470256,185.37,185.36,9.20878572]
[1755281211202,7.22470256,185.37,185.36,9.27878572]
[1755281211403,39.48,185.44,185.36,9.27878572]
[1755281211628,0.7,185.46,185.43,9.20878572]
[1755281211836,0.7,185.46,185.45,9.20878572]
[1755281212135,39.52,185.48,185.45,9.20878572]
[1755281212430,0.7,185.53,185.47,9.20878572]
[1755281212637,39.56,185.52,185.45,5.3922664]
[1755281213428,0.06,185.5,185.45,5.3922664]
[1755281213629,0.7,185.49,185.4,9.27878572]
[1755281213825,0.7,185.49,185.47,9.20878572]
[1755281214137,0.06,185.5,185.48,9.20878572]
[1755281214338,0.5,185.48,185.46,9.20878572]
[1755281214543,0.5,185.48,185.47,9.20878572]
[1755281214928,0.5,185.48,185.39,31.39403367]
[1755281215137,39.56,185.47,185.43,9.20878572]
[1755281215319,39.56,185.47,185.46,9.20878572]
[1755281216014,40.26,185.47,185.46,9.20878572]
[1755281216334,45.65170755,185.47,185.46,9.20878572]
[1755281216918,45.65170755,185.47,185.4,14.60244471]
[1755281217434,39.56,185.47,185.4,14.60244471]
[1755281217838,0.5,185.48,185.46,9.20878572]
[1755281218145,0.06,185.5,185.47,9.20878572]
[1755281218437,0.06,185.5,185.49,9.20878572]
[1755281218639,0.06,185.5,185.49,14.59991192]
[1755281219022,0.06,185.5,185.49,14.66991192]
[1755281219341,0.06,185.52,185.49,14.66991192]
[1755281219540,0.06,185.52,185.51,9.20878572]
[1755281220335,7.18943225,185.56,185.51,14.6693307]
[1755281220535,0.06,185.57,185.54,9.20878572]
[1755281220719,0.06,185.57,185.56,26.0]
[1755281220916,0.06,185.61,185.56,35.20878572]
[1755281221246,0.06,185.61,185.58,9.20878572]
[1755281221426,0.76,185.59,185.51,5.39054498]
[1755281221744,0.7,185.58,185.51,5.39054498]
[1755281221932,0.7,185.58,185.51,31.39054498]
[1755281222335,0.06,185.59,185.52,0.07]
[1755281222958,0.06,185.59,185.58,9.20878572]
[1755281224648,0.06,185.59,185.58,14.59729741]
[1755281225020,0.06,185.61,185.58,14.59729741]
[1755281225021,0.06,185.61,185.58,14.66729741]
[1755281225345,0.06,185.61,185.6,9.20878572]
[1755281228952,6.14764075,185.61,185.59,9.20878572]
[1755281229135,5.44764075,185.61,185.59,9.20878572]
[1755281229451,0.7,185.6,185.53,31.41972546]
[1755281230156,6.08798314,185.6,185.53,31.41972546]
[1755281230653,6.08798314,185.6,185.59,9.20878572]
[1755281230849,0.7,185.6,185.59,9.20878572]
[1755281231154,0.06,185.61,185.59,9.20878572]
[1755281231331,0.76,185.61,185.6,9.20878572]
[1755281231533,0.76,185.61,185.55,79.2]
[1755281231727,6.14768196,185.61,185.55,79.2]
[1755281232131,0.06,185.61,185.6,9.20878572]
[1755281232332,0.06,185.61,185.57,9.20878572]
[1755281232539,0.06,185.61,185.58,9.20878572]
[1755281232853,0.06,185.61,185.6,9.20878572]
[1755281233033,0.76,185.61,185.6,9.20878572]
[1755281233736,0.06,185.61,185.6,9.20878572]
[1755281234446,0.06,185.61,185.58,26.0]
[1755281234646,0.76,185.61,185.6,9.20878572]
[1755281234847,0.06,185.61,185.6,9.20878572]
[1755281235460,0.75,185.61,185.57,9.20878572]
[1755281236352,5.38822134,185.59,185.56,9.20878572]
[1755281236653,15.10621557,185.6,185.53,0.03]
[1755281236654,0.75,185.61,185.58,9.20878572]
[1755281236864,0.06,185.61,185.55,9.27878572]
[1755281237034,0.06,185.61,185.6,9.20878572]
[1755281237760,6.13764075,185.61,185.6,9.20878572]
[1755281238433,0.06,185.61,185.6,9.20878572]
[1755281239052,0.75,185.61,185.6,9.20878572]
[1755281239562,6.13764075,185.61,185.6,9.20878572]
[1755281239960,0.75,185.61,185.6,9.20878572]
[1755281240537,6.13764075,185.61,185.55,14.59800098]
[1755281240858,6.13764075,185.61,185.6,9.20878572]
[1755281241355,6.13764075,185.61,185.54,39.46]
[1755281241874,6.13764075,185.61,185.6,9.20878572]
[1755281242768,0.06,185.61,185.6,9.20878572]
[1755281243147,5.44764075,185.61,185.6,9.20878572]
[1755281243351,6.13764075,185.61,185.6,9.20878572]
[1755281244275,0.06,185.61,185.6,9.20878572]
[1755281245955,0.75,185.61,185.6,9.20878572]
[1755281246271,0.75,185.61,185.59,9.23878572]
[1755281246569,5.38793103,185.6,185.59,0.03]
[1755281247177,6.07793103,185.6,185.59,0.03]
[1755281247688,30.39293232,185.6,185.59,1e-08]
[1755281247868,15.10621557,185.56,185.55,0.03]
[1755281248055,9.20878572,185.55,185.53,0.03]
[1755281248256,0.69,185.55,185.53,0.03]
[1755281248572,6.07938291,185.55,185.54,9.20878572]
[1755281248877,6.07938291,185.55,185.53,0.03]
[1755281249077,0.69,185.54,185.53,0.03]
[1755281250279,15.79621557,185.54,185.53,0.03]
[1755281250457,25.00500129,185.54,185.53,0.03]
[1755281250655,21.18588895,185.54,185.53,0.03]
[1755281250949,30.39467467,185.54,185.53,0.03]
[1755281251169,30.39467467,185.54,185.53,1e-08]
[1755281251368,21.18588895,185.54,185.53,1e-08]
[1755281252249,6.07967338,185.54,185.53,1e-08]
[1755281252651,13.47167851,185.58,185.53,9.20878573]
[1755281252652,5.38851169,185.58,185.53,9.20878573]
[1755281252855,0.69,185.57,185.56,9.20878572]
[1755281253051,0.69,185.57,185.55,9.20878572]
[1755281253276,0.69,185.57,185.56,9.20878572]
[1755281253857,39.48,185.59,185.56,9.20878572]
[1755281254071,39.48,185.59,185.58,9.20878572]
[1755281254275,5.44770064,185.61,185.58,9.20878572]
[1755281254489,20.55391621,185.61,185.6,9.20878572]